[Event "GCT Superbet Blitz Poland 2025"]
[Site "Warsaw"]
[Date "2025.04.28"]
[Round "17"]
[White "Praggnanandhaa R"]
[Black "Aravindh, Chithambaram VR."]
[Result "1-0"]
[ECO "A01"]
[WhiteElo "2758"]
[BlackElo "2749"]
[Annotator "ChessBase"]
[PlyCount "88"]
[EventDate "2025.??.??"]
[EventType "blitz"]
[TimeControl "300+2"]

1. b3 {[%emt 0:00:01]} b6 {[%emt 0:00:01]} 2. e4 {[%emt 0:00:02]} Bb7 {[%emt 0:00:02]} 3. Nc3 {[%emt 0:00:01]} e6 {[%emt 0:00:01]} 4. Bb2 {[%emt 0:00:02]} c5 {[%emt 0:00:03]} ({RR} 4... Nf6 5. e5 Nd5 6. Nxd5 Bxd5 7. Qg4 h5 8. Qf4 g5 9. Qe3 a5 10. a3 Bb7 11. Nf3 g4 12. Nd4 Nc6 13. Nb5 Bh6 14. Qc3 Bg7 15. d4 d6 16. exd6 cxd6 17. h3 f5 18. hxg4 hxg4 19. Rxh8+ {Carlsen,M (2855)-So,W (2778) chess24.com INT 2021 1-0}) ({RR} 4... d5 5. d3 Nf6 6. e5 Nfd7 7. d4 c5 8. Nf3 Nc6 9. Nb5 a6 10. Nd6+ Bxd6 11. exd6 cxd4 12. Nxd4 Nxd4 13. Qxd4 e5 14. Qg4 O-O 15. O-O-O f5 16. Qh3 Rc8 17. Kb1 Qf6 18. Bd3 Nc5 19. f4 {Iniyan,P (2513)-Miszler,L (2270) chess.com INT 2024 1-0}) 5. d4 {[%emt 0:00:09]} cxd4 {[%emt 0:00:20]} 6. Qxd4 {[%emt 0:00:02]} Nf6 $146 {[%emt 0:00:02]} ({RR} 6... Nc6 7. Qd2 Nf6 8. O-O-O Bb4 9. f3 d5 10. a3 Bxc3 11. Qxc3 O-O 12. exd5 exd5 13. Ne2 Rc8 14. Nd4 Nxd4 15. Qxd4 Qc7 16. Bd3 Rfe8 17. Kb1 h6 18. g4 Qc5 19. Qf4 Qc7 20. Qd2 Nd7 21. g5 {Daneshvar,B (2490)-Santos Ruiz,M (2581) Chess.com INT 2022 1-0}) ({RR} 6... Nc6 7. Qd2 Nf6 8. O-O-O Bb4 9. f3 d5 10. a3 Bxc3 11. Qxc3 O-O 12. exd5 exd5 13. Ne2 Rc8 14. Nd4 Nxd4 15. Qxd4 Qc7 16. Bd3 Rfe8 17. Kb1 h6 18. g4 Qc5 19. Qf4 Qc7 20. Qd2 Nd7 21. g5 {Daneshvar,B (2490)-Santos Ruiz,M (2581) Chess.com INT 2022 1-0}) 7. f3 {[%emt 0:00:29]} Bc5 {[%emt 0:00:25]} 8. Qd2 {[%emt 0:00:02]} d5 {[%emt 0:00:01]} 9. O-O-O {[%emt 0:00:10]} O-O {[%emt 0:00:03]} 10. Nge2 {[%emt 0:00:11]} Nc6 {[%emt 0:00:04]} 11. exd5 {[%emt 0:00:54]} exd5 {[%emt 0:00:02]} 12. Na4 {[%emt 0:00:48]} Re8 {[%emt 0:00:02]} 13. Nxc5 {[%emt 0:00:03]} bxc5 {[%emt 0:00:02]} 14. Nc3 {[%emt 0:00:15]} d4 {[%emt 0:01:31]} 15. Na4 {[%emt 0:00:01]} Qd6 {[%emt 0:00:02]} 16. Ba3 {[%emt 0:00:29]} Nd7 {[%emt 0:00:16]} 17. Bd3 {[%emt 0:00:01]} a5 {[%emt 0:00:25]} 18. Be4 {[%emt 0:00:12]} Reb8 {[%emt 0:00:21]} 19. Rhe1 {[%emt 0:00:20]} Nb4 {[%emt 0:00:04]} 20. c3 {[%emt 0:00:07]} Qc7 {[%emt 0:00:21]} 21. cxb4 {[%emt 0:00:50]} cxb4+ {[%emt 0:00:12]} 22. Qc2 {[%emt 0:00:01]} Qxc2+ {[%emt 0:00:39]} 23. Bxc2 {[%emt 0:00:16]} bxa3 {[%emt 0:00:02]} 24. Rxd4 {[%emt 0:00:01]} Nf6 {[%emt 0:00:06]} 25. Nb6 {[%emt 0:00:03]} Ra6 {[%emt 0:00:07]} 26. Nc4 {[%emt 0:00:02]} a4 {[%emt 0:00:12]} 27. bxa4 {[%emt 0:00:08]} Bd5 {[%emt 0:00:08]} 28. Nxa3 {[%emt 0:00:03]} g6 {[%emt 0:00:09]} 29. Re5 {[%emt 0:00:03]} Bxa2 {[%emt 0:00:02]} 30. Rb5 {[%emt 0:00:03]} Rc8 {[%emt 0:00:01]} 31. Kb2 {[%emt 0:00:01]} Be6 {[%emt 0:00:02]} 32. Bb3 {[%emt 0:00:09]} Bxb3 {[%emt 0:00:08]} 33. Kxb3 {[%emt 0:00:03]} Re6 {[%emt 0:00:03]} 34. Nc4 {[%emt 0:00:03]} Re1 {[%emt 0:00:03]} 35. Rd2 {[%emt 0:00:04]} Rb1+ {[%emt 0:00:02]} 36. Rb2 {[%emt 0:00:00]} Rc1 {[%emt 0:00:02]} 37. Nb6 {[%emt 0:00:02]} R8c6 {[%emt 0:00:03]} 38. a5 {[%emt 0:00:01]} Ne8 {[%emt 0:00:02]} 39. a6 {[%emt 0:00:03]} Nc7 {[%emt 0:00:03]} 40. a7 {[%emt 0:00:01]} Ra1 {[%emt 0:00:03]} 41. Ra2 {[%emt 0:00:03]} Rb1+ {[%emt 0:00:01]} 42. Rb2 {[%emt 0:00:01]} Ra1 {[%emt 0:00:02]} 43. Rb4 {[%emt 0:00:02]} Rxa7 {[%emt 0:00:03]} 44. Nc8 {[%emt 0:00:00]} Raa6 {[%emt 0:00:05]} 1-0

[Event "GCT Superbet Blitz Poland 2025"]
[Site "Warsaw"]
[Date "2025.04.28"]
[Round "17"]
[White "Duda, Jan-Krzysztof"]
[Black "Deac, Bogdan-Daniel"]
[Result "1/2-1/2"]
[ECO "C54"]
[WhiteElo "2739"]
[BlackElo "2668"]
[Annotator "ChessBase"]
[PlyCount "168"]
[EventDate "2025.??.??"]
[EventType "blitz"]
[TimeControl "300+2"]

1. e4 {[%emt 0:00:01]} e5 {[%emt 0:00:01]} 2. Bc4 {[%emt 0:00:01]} Nf6 {[%emt 0:00:01]} 3. d3 {[%emt 0:00:01]} Nc6 {[%emt 0:00:02]} 4. Nf3 {[%emt 0:00:03]} Bc5 {[%emt 0:00:05]} 5. c3 {[%emt 0:00:03]} d6 {[%emt 0:00:01]} 6. O-O {[%emt 0:00:05]} a5 {[%emt 0:00:01]} 7. Nbd2 {[%emt 0:00:03]} O-O {[%emt 0:00:03]} 8. Re1 {[%emt 0:00:02]} Ba7 {[%emt 0:00:44]} 9. Nf1 {[%emt 0:00:03]} Be6 {[%emt 0:00:26]} ({RR} 9... Ne7 10. d4 Ng6 11. h3 Be6 12. Bxe6 fxe6 13. Ng3 Qe8 14. Be3 Nd7 15. a4 Bb6 16. b4 h6 17. b5 Qf7 18. Ra2 Nf4 19. Kh2 Ng6 20. Rd2 Rae8 21. Rc2 Kh7 22. Qd3 Nf4 23. Qd1 Ng6 24. Nd2 {Niemann,H (2676)-Deac,B (2692) chess.com INT 2024 0-1 (50)}) 10. b3 $146 {[%emt 0:00:10]} ({RR} 10. Bb5 Ne7 11. Ng3 Ng6 12. h3 c6 13. Ba4 d5 14. exd5 Nxd5 15. d4 exd4 16. Nxd4 Qc7 17. Qf3 Bxd4 18. cxd4 Qb6 19. Rd1 Rad8 20. Bb3 Nc7 21. Nf5 Bxb3 22. axb3 Qb5 23. h4 h5 24. Bd2 b6 {Duda,J (2743)-Carlsen,M (2862) Wijk aan Zee 2021 ½-½ (51)}) ({RR} 10. Bb5 Ne7 11. d4 c6 12. Bd3 Ng6 13. h3 Nh5 14. Be3 Nhf4 15. Bc2 Qc8 16. Bb3 exd4 17. Nxd4 Bxd4 18. Qxd4 Bxb3 19. axb3 d5 20. Qd2 Nxh3+ 21. gxh3 Qxh3 22. f4 Nh4 23. Nh2 dxe4 24. Qf2 Rfe8 {So,W (2770)-Carlsen,M (2862) chess24.com INT 2021 ½-½ (54)}) ({RR} 10. Bb3 Bxb3 11. Qxb3 a4 12. Qc2 h6 13. h3 Re8 14. Bd2 b5 15. Ng3 Qd7 16. Rad1 Rad8 17. d4 exd4 18. cxd4 d5 19. e5 Ne4 20. Nxe4 dxe4 21. Rxe4 Nxd4 22. Nxd4 Bxd4 23. Be3 c5 24. Qd3 Qd5 {Meng,Y (2412)-Costa,L (2503) Petrovac MNE 2025 ½-½ (34)}) ({RR} 10. Bb5 Ne7 11. d4 Ng6 12. h3 exd4 13. Nxd4 Bd7 14. Bxd7 Nxd7 15. Ng3 Re8 16. f4 Qh4 17. Ngf5 Qf6 18. Kh2 Bxd4 19. Nxd4 Nc5 20. f5 Ne5 21. Nf3 h6 22. Re2 g5 23. Ne1 Nc6 24. Qc2 Qe5+ {Moussard,J (2611)-Sadhwani,R (2654) chess.com INT 2024 0-1 (62)}) ({RR} 10. Bb5 Ne7 11. d4 Ng6 12. h3 exd4 13. cxd4 d5 14. e5 Ne4 15. Be3 f5 16. exf6 Qxf6 17. N1h2 c6 18. Bd3 Bb8 19. Qc2 Nh4 20. Nxh4 Qxh4 21. f3 Nf6 22. Bf2 Bxh2+ 23. Kxh2 Ng4+ 24. Kg1 Nxf2 {Pulpan,J (2378)-Nothnagel,M (2410) Prague CZE 2024 ½-½}) 10... h6 {[%emt 0:00:10]} 11. Ng3 {[%emt 0:00:06]} Re8 {[%emt 0:00:02]} 12. h3 {[%emt 0:00:13]} d5 {[%emt 0:00:28]} 13. exd5 {[%emt 0:00:09]} Bxd5 {[%emt 0:00:03]} 14. Bb5 {[%emt 0:00:10]} Qd6 {[%emt 0:00:17]} 15. Nf5 {[%emt 0:01:10]} Qc5 {[%emt 0:00:25]} 16. Bxc6 {[%emt 0:01:41]} Qxf2+ {[%emt 0:01:20]} 17. Kh1 {[%emt 0:00:01]} Bxc6 {[%emt 0:00:01]} 18. Rf1 {[%emt 0:00:04]} Bxf3 {[%emt 0:00:03]} 19. gxf3 {[%emt 0:00:30]} Qb6 {[%emt 0:00:24]} 20. d4 {[%emt 0:00:22]} Qe6 {[%emt 0:00:14]} 21. Qd3 {[%emt 0:00:03]} exd4 {[%emt 0:00:05]} 22. cxd4 {[%emt 0:00:20]} Qe2 {[%emt 0:00:17]} 23. Qxe2 {[%emt 0:00:17]} Rxe2 {[%emt 0:00:01]} 24. Rg1 {[%emt 0:00:08]} g6 {[%emt 0:00:04]} 25. Bxh6 {[%emt 0:00:02]} Rae8 {[%emt 0:00:22]} 26. Rad1 {[%emt 0:00:03]} c6 {[%emt 0:00:03]} 27. Bf4 {[%emt 0:00:02]} Nd5 {[%emt 0:00:05]} 28. Bd6 {[%emt 0:00:02]} R8e6 {[%emt 0:00:05]} 29. Bh2 {[%emt 0:00:02]} Rxa2 {[%emt 0:00:02]} 30. Ng3 {[%emt 0:00:02]} Rb2 {[%emt 0:00:02]} 31. Ne4 {[%emt 0:00:02]} Rxb3 {[%emt 0:00:01]} 32. Rb1 {[%emt 0:00:01]} Rxb1 {[%emt 0:00:02]} 33. Rxb1 {[%emt 0:00:01]} b5 {[%emt 0:00:01]} 34. Ng5 {[%emt 0:00:04]} Re8 {[%emt 0:00:01]} 35. Rc1 {[%emt 0:00:01]} Rc8 {[%emt 0:00:02]} 36. Ne4 {[%emt 0:00:02]} a4 {[%emt 0:00:01]} 37. Nd6 {[%emt 0:00:01]} Ra8 {[%emt 0:00:02]} 38. Rxc6 {[%emt 0:00:01]} b4 {[%emt 0:00:03]} 39. Ra6 {[%emt 0:00:01]} a3 {[%emt 0:00:04]} 40. Nb5 {[%emt 0:00:03]} b3 {[%emt 0:00:03]} 41. Rxa3 {[%emt 0:00:03]} b2 {[%emt 0:00:04]} 42. Rb3 {[%emt 0:00:01]} Bb6 {[%emt 0:00:01]} 43. Rxb2 {[%emt 0:00:02]} Rc8 {[%emt 0:00:02]} 44. Rb1 {[%emt 0:00:03]} Rc2 {[%emt 0:00:02]} 45. Be5 {[%emt 0:00:01]} f6 {[%emt 0:00:01]} 46. Bg3 {[%emt 0:00:01]} Rc6 {[%emt 0:00:03]} 47. h4 {[%emt 0:00:03]} Kg7 {[%emt 0:00:02]} 48. Bf2 {[%emt 0:00:02]} Bd8 {[%emt 0:00:02]} 49. Kg1 {[%emt 0:00:02]} Rb6 {[%emt 0:00:01]} 50. Kf1 {[%emt 0:00:01]} Be7 {[%emt 0:00:02]} 51. Nc3 {[%emt 0:00:04]} Rxb1+ {[%emt 0:00:01]} 52. Nxb1 {[%emt 0:00:01]} Kf7 {[%emt 0:00:02]} 53. Nd2 {[%emt 0:00:01]} Ke6 {[%emt 0:00:01]} 54. Nc4 {[%emt 0:00:02]} Nf4 {[%emt 0:00:04]} 55. Ne3 {[%emt 0:00:02]} Nd5 {[%emt 0:00:03]} 56. Nc2 {[%emt 0:00:05]} Nf4 {[%emt 0:00:02]} 57. Bg3 {[%emt 0:00:02]} Nd5 {[%emt 0:00:02]} 58. Ke2 {[%emt 0:00:01]} f5 {[%emt 0:00:03]} 59. Kd3 {[%emt 0:00:04]} Nb6 {[%emt 0:00:00]} 60. Ne3 {[%emt 0:00:01]} Nd5 {[%emt 0:00:01]} 61. Nc4 {[%emt 0:00:01]} Bf6 {[%emt 0:00:04]} 62. Bf2 {[%emt 0:00:03]} Nf4+ {[%emt 0:00:01]} 63. Kc3 {[%emt 0:00:02]} Ne2+ {[%emt 0:00:03]} 64. Kd3 {[%emt 0:00:01]} Nf4+ {[%emt 0:00:01]} 65. Kd2 {[%emt 0:00:01]} Ng2 {[%emt 0:00:02]} 66. Nb6 {[%emt 0:00:04]} Bxh4 {[%emt 0:00:03]} 67. Bxh4 {[%emt 0:00:02]} Nxh4 {[%emt 0:00:01]} 68. Ke3 {[%emt 0:00:02]} g5 {[%emt 0:00:01]} 69. Nc4 {[%emt 0:00:02]} Ng6 {[%emt 0:00:02]} 70. Nb6 {[%emt 0:00:02]} Ne7 {[%emt 0:00:01]} 71. Nc4 {[%emt 0:00:01]} Nd5+ {[%emt 0:00:01]} 72. Kf2 {[%emt 0:00:01]} Nf6 {[%emt 0:00:01]} 73. Ne3 {[%emt 0:00:01]} Nd5 {[%emt 0:00:01]} 74. Nc4 {[%emt 0:00:02]} Ne7 {[%emt 0:00:01]} 75. Ke3 {[%emt 0:00:02]} Nd5+ {[%emt 0:00:01]} 76. Kd2 {[%emt 0:00:01]} g4 {[%emt 0:00:03]} 77. fxg4 {[%emt 0:00:01]} fxg4 {[%emt 0:00:02]} 78. Ne5 {[%emt 0:00:02]} g3 {[%emt 0:00:01]} 79. Ke2 {[%emt 0:00:00]} Nf4+ {[%emt 0:00:02]} 80. Kf3 {[%emt 0:00:02]} g2 {[%emt 0:00:01]} 81. Kf2 {[%emt 0:00:01]} Kd5 {[%emt 0:00:02]} 82. Nf3 {[%emt 0:00:01]} Ke4 {[%emt 0:00:01]} 83. Ne1 {[%emt 0:00:02]} Kxd4 {[%emt 0:00:03]} 84. Nxg2 {[%emt 0:00:01]} Nxg2 {[%emt 0:00:01]} 1/2-1/2

[Event "GCT Superbet Blitz Poland 2025"]
[Site "Warsaw"]
[Date "2025.04.28"]
[Round "17"]
[White "Vachier-Lagrave, Maxime"]
[Black "Firouzja, Alireza"]
[Result "1/2-1/2"]
[ECO "B18"]
[WhiteElo "2722"]
[BlackElo "2757"]
[Annotator "ChessBase"]
[PlyCount "161"]
[EventDate "2025.??.??"]
[EventType "blitz"]
[TimeControl "300+2"]

1. e4 {[%emt 0:00:01]} c6 {[%emt 0:00:00]} 2. d4 {[%emt 0:00:02]} d5 {[%emt 0:00:01]} 3. Nc3 {[%emt 0:00:01]} dxe4 {[%emt 0:00:01]} 4. Nxe4 {[%emt 0:00:00]} Bf5 {[%emt 0:00:01]} 5. Ng3 {[%emt 0:00:02]} Bg6 {[%emt 0:00:01]} 6. h4 {[%emt 0:00:01]} h6 {[%emt 0:00:00]} 7. Bd3 {[%emt 0:00:01]} Bxd3 {[%emt 0:00:07]} 8. Qxd3 {[%emt 0:00:01]} e6 {[%emt 0:00:03]} 9. Bd2 {[%emt 0:00:12]} Nf6 {[%emt 0:00:05]} 10. N1e2 {[%emt 0:00:01]} Be7 {[%emt 0:00:26]} 11. O-O-O {[%emt 0:00:16]} O-O {[%emt 0:00:02]} 12. Kb1 {[%emt 0:00:02]} c5 {[%emt 0:00:21]} 13. Be3 $146 {[%emt 0:00:28]} ({RR} 13. Ne4 Nbd7 14. Nxf6+ Nxf6 15. f3 b5 16. Qxb5 Rb8 17. Qa4 Qb6 18. Bc1 Rfc8 19. c4 cxd4 20. Rxd4 e5 21. Rd2 Qc5 22. a3 e4 23. Rhd1 exf3 24. gxf3 Bf8 25. Rc2 Qh5 26. Qxa7 Qxf3 27. Qe3 Qa8 {Maurizzi,M (2620)-Donchenko,A (2633) Biel SUI 2024 0-1 (58)}) ({RR} 13. Ne4 cxd4 14. Nxd4 Nc6 15. Nxc6 bxc6 16. Qxd8 Rfxd8 17. Nxf6+ Bxf6 18. h5 Rd5 19. Be3 Rb8 20. b3 a5 21. c4 Rxd1+ 22. Rxd1 a4 23. Rd3 axb3 24. Rxb3 Rxb3+ 25. axb3 Kf8 26. Kc2 Ke7 27. Kd3 Kd6 {Van Foreest,J (2682)-Srihari,L (2414) Chess.com INT 2020 ½-½ (53)}) ({RR} 13. Ne4 Nxe4 14. Qxe4 Qb6 15. Qg4 Kh7 16. Bc3 Rg8 17. d5 Bf6 18. Qe4+ Kh8 19. Bxf6 gxf6 20. Qf4 Kg7 21. Ng3 f5 22. dxe6 {1-0 (22) Mastrovasilis,D (2604)-Argiroudis,S (2242) Thessaloniki 2020}) 13... Nc6 {[%emt 0:00:16]} 14. dxc5 {[%emt 0:00:05]} Qxd3 {[%emt 0:00:02]} 15. Rxd3 {[%emt 0:00:01]} Ng4 {[%emt 0:00:01]} 16. Ne4 {[%emt 0:00:10]} f5 {[%emt 0:00:16]} 17. Nd6 {[%emt 0:00:03]} e5 {[%emt 0:01:20]} 18. f3 {[%emt 0:00:14]} Nxe3 {[%emt 0:00:01]} 19. Rxe3 {[%emt 0:00:01]} b6 {[%emt 0:00:00]} 20. Nc3 {[%emt 0:00:16]} bxc5 {[%emt 0:00:23]} 21. Nc4 {[%emt 0:00:01]} Bf6 {[%emt 0:00:01]} 22. Nd5 {[%emt 0:00:02]} Rad8 {[%emt 0:00:06]} 23. Rd3 {[%emt 0:00:17]} Kf7 {[%emt 0:00:06]} 24. h5 {[%emt 0:00:24]} Rd7 {[%emt 0:00:14]} 25. Nde3 {[%emt 0:00:20]} Rxd3 {[%emt 0:00:03]} 26. cxd3 {[%emt 0:00:01]} Ke6 {[%emt 0:00:02]} 27. a3 {[%emt 0:00:05]} Rd8 {[%emt 0:00:05]} 28. Kc2 {[%emt 0:00:05]} Nd4+ {[%emt 0:00:08]} 29. Kd1 {[%emt 0:00:01]} Rb8 {[%emt 0:00:08]} 30. Nc2 {[%emt 0:00:02]} Nc6 {[%emt 0:00:26]} 31. Ke2 {[%emt 0:00:31]} a5 {[%emt 0:00:15]} 32. a4 {[%emt 0:00:10]} f4 {[%emt 0:00:14]} 33. Kd2 {[%emt 0:00:03]} Bd8 {[%emt 0:00:06]} 34. Ra1 {[%emt 0:00:15]} Bc7 {[%emt 0:00:05]} 35. Rg1 {[%emt 0:00:08]} Ne7 {[%emt 0:00:17]} 36. g4 {[%emt 0:00:08]} Kf6 {[%emt 0:00:21]} 37. N2a3 {[%emt 0:00:02]} Nc6 {[%emt 0:00:03]} 38. Nb5 {[%emt 0:00:01]} Rb7 {[%emt 0:00:05]} 39. Kc3 {[%emt 0:00:05]} Bb8 {[%emt 0:00:02]} 40. Nd2 {[%emt 0:00:01]} Nd4 {[%emt 0:00:04]} 41. Ne4+ {[%emt 0:00:02]} Ke7 {[%emt 0:00:02]} 42. Nxd4 {[%emt 0:00:07]} cxd4+ {[%emt 0:00:01]} 43. Kc2 {[%emt 0:00:00]} Rb6 {[%emt 0:00:03]} 44. Rc1 {[%emt 0:00:17]} Bd6 {[%emt 0:00:02]} 45. Kb1 {[%emt 0:00:02]} Kd7 {[%emt 0:00:01]} 46. Rc4 {[%emt 0:00:01]} Be7 {[%emt 0:00:01]} 47. Kc2 {[%emt 0:00:02]} g6 {[%emt 0:00:01]} 48. hxg6 {[%emt 0:00:02]} Rxg6 {[%emt 0:00:01]} 49. Kd1 {[%emt 0:00:22]} h5 {[%emt 0:00:02]} 50. gxh5 {[%emt 0:00:01]} Rh6 {[%emt 0:00:00]} 51. Rc2 {[%emt 0:00:12]} Rxh5 {[%emt 0:00:02]} 52. Rg2 {[%emt 0:00:01]} Rh1+ {[%emt 0:00:03]} 53. Kc2 {[%emt 0:00:05]} Rh3 {[%emt 0:00:05]} 54. Nd2 {[%emt 0:00:03]} Bb4 {[%emt 0:00:02]} 55. Nc4 {[%emt 0:00:01]} Ke6 {[%emt 0:00:00]} 56. Rf2 {[%emt 0:00:05]} Kf6 {[%emt 0:00:05]} 57. Kd1 {[%emt 0:00:05]} Rh1+ {[%emt 0:00:01]} 58. Kc2 {[%emt 0:00:01]} Re1 {[%emt 0:00:02]} 59. Nb6 {[%emt 0:00:05]} Bd6 {[%emt 0:00:05]} 60. Kb3 {[%emt 0:00:06]} Kg5 {[%emt 0:00:01]} 61. Rg2+ Kh4 62. Kc4 {[%emt 0:00:05]} Re3 {[%emt 0:00:02]} 63. Kd5 {[%emt 0:00:03]} Rxf3 {[%emt 0:00:04]} 64. Kxd6 {[%emt 0:00:02]} Re3 {[%emt 0:00:01]} 65. Nc4 {[%emt 0:00:09]} f3 {[%emt 0:00:01]} 66. Rg8 {[%emt 0:00:10]} f2 {[%emt 0:00:03]} 67. Rf8 {[%emt 0:00:01]} Kg3 {[%emt 0:00:04]} 68. Nxe5 {[%emt 0:00:06]} Re1 {[%emt 0:00:01]} 69. Kd5 {[%emt 0:00:06]} f1=Q {[%emt 0:00:02]} 70. Rxf1 {[%emt 0:00:01]} Rxf1 {[%emt 0:00:00]} 71. Kxd4 {[%emt 0:00:04]} Rf4+ {[%emt 0:00:01]} 72. Kc5 {[%emt 0:00:03]} Rxa4 {[%emt 0:00:02]} 73. Nc4 {[%emt 0:00:00]} Kf4 {[%emt 0:00:04]} 74. d4 {[%emt 0:00:02]} Ra1 {[%emt 0:00:02]} 75. d5 {[%emt 0:00:01]} Kf5 {[%emt 0:00:01]} 76. b3 {[%emt 0:00:05]} a4 {[%emt 0:00:02]} 77. bxa4 {[%emt 0:00:00]} Rxa4 {[%emt 0:00:01]} 78. d6 {[%emt 0:00:01]} Ke6 {[%emt 0:00:01]} 79. d7 {[%emt 0:00:01]} Kxd7 {[%emt 0:00:01]} 80. Nb6+ {[%emt 0:00:01]} Ke6 {[%emt 0:00:00]} 81. Nxa4 {[%emt 0:00:01]} 1/2-1/2

[Event "GCT Superbet Blitz Poland 2025"]
[Site "Warsaw"]
[Date "2025.04.28"]
[Round "17"]
[White "Topalov, Veselin"]
[Black "Gavrilescu, David"]
[Result "1-0"]
[ECO "A13"]
[WhiteElo "2717"]
[BlackElo "2554"]
[Annotator "ChessBase"]
[PlyCount "71"]
[EventDate "2025.??.??"]
[EventType "blitz"]
[TimeControl "300+2"]

1. c4 {[%emt 0:00:01]} e6 {[%emt 0:00:02]} 2. Nf3 {[%emt 0:00:05]} d5 {[%emt 0:00:02]} 3. e3 {[%emt 0:00:01]} Nf6 {[%emt 0:00:01]} 4. b3 {[%emt 0:00:01]} Bd6 {[%emt 0:00:02]} 5. d4 {[%emt 0:00:10]} b6 {[%emt 0:00:04]} 6. Bb2 {[%emt 0:00:03]} O-O {[%emt 0:00:02]} 7. Nc3 {[%emt 0:00:06]} Bb7 {[%emt 0:00:02]} 8. cxd5 {[%emt 0:00:08]} exd5 {[%emt 0:00:04]} 9. g3 $146 {[%emt 0:00:03]} ({RR} 9. Bd3 Ne4 10. O-O a6 11. Qc2 Re8 12. Ne5 Nd7 13. Nxe4 dxe4 14. Bxe4 Bxe4 15. Qxe4 Qe7 16. Rac1 Nxe5 17. dxe5 Bxe5 18. Qxe5 Qxe5 19. Bxe5 Rxe5 20. Rxc7 Rd8 21. Rfc1 Kf8 22. g3 Rd2 23. R1c2 Red5 {Medvegy,Z (2527)-Fischer,D (2276) Tornelo INT 2021 1-0 (60)}) ({RR} 9. Bd3 Ne4 10. O-O a6 11. Qc2 Re8 12. Ne5 Nd7 13. Nxe4 dxe4 14. Bxe4 Bxe4 15. Qxe4 Qe7 16. Rac1 Nxe5 17. dxe5 Bxe5 18. Qxe5 Qxe5 19. Bxe5 Rxe5 20. Rxc7 Rd8 21. Rfc1 Kf8 22. g3 Rd2 23. R1c2 Red5 {Medvegy,Z (2527)-Fischer,D (2276) Tornelo INT 2021 1-0 (60)}) 9... Re8 {[%emt 0:00:29]} 10. Bg2 {[%emt 0:00:04]} Ba6 {[%emt 0:00:06]} 11. a3 {[%emt 0:00:21]} Nc6 {[%emt 0:00:53]} 12. b4 {[%emt 0:00:35]} Ne7 {[%emt 0:00:37]} 13. b5 {[%emt 0:00:05]} Bb7 {[%emt 0:00:09]} 14. O-O {[%emt 0:00:01]} a6 {[%emt 0:00:06]} 15. a4 {[%emt 0:00:01]} Ng6 {[%emt 0:00:05]} 16. Qb3 {[%emt 0:00:05]} Qd7 {[%emt 0:00:09]} 17. Rfc1 {[%emt 0:00:41]} h5 {[%emt 0:00:19]} 18. bxa6 {[%emt 0:00:17]} Rxa6 {[%emt 0:00:28]} 19. Nb5 {[%emt 0:00:14]} Ne4 {[%emt 0:00:16]} 20. Nxd6 {[%emt 0:00:06]} Qxd6 {[%emt 0:00:02]} 21. Ne5 {[%emt 0:00:30]} Nxe5 {[%emt 0:00:08]} 22. dxe5 {[%emt 0:00:01]} Qd7 {[%emt 0:00:02]} 23. a5 {[%emt 0:00:52]} h4 {[%emt 0:00:39]} 24. f3 {[%emt 0:00:47]} Ng5 {[%emt 0:00:23]} 25. gxh4 {[%emt 0:00:01]} Nh3+ {[%emt 0:00:13]} 26. Kf1 {[%emt 0:00:01]} d4 {[%emt 0:00:12]} 27. Bxd4 {[%emt 0:00:12]} c5 {[%emt 0:00:02]} 28. Bb2 {[%emt 0:00:06]} Qf5 {[%emt 0:00:07]} 29. Qc2 {[%emt 0:00:04]} Qc8 {[%emt 0:00:05]} 30. axb6 {[%emt 0:00:08]} Rxb6 {[%emt 0:00:01]} 31. Ra4 {[%emt 0:00:08]} Ba6+ {[%emt 0:00:03]} 32. Ke1 {[%emt 0:00:04]} Ng1 {[%emt 0:00:06]} 33. Kf2 {[%emt 0:00:01]} Nh3+ {[%emt 0:00:03]} 34. Kg3 {[%emt 0:00:02]} Rg6+ {[%emt 0:00:02]} 35. Rg4 {[%emt 0:00:01]} Rxg4+ {[%emt 0:00:05]} 36. fxg4 {[%emt 0:00:01]} 1-0

[Event "GCT Superbet Blitz Poland 2025"]
[Site "Warsaw"]
[Date "2025.04.30"]
[Round "18"]
[White "Firouzja, Alireza"]
[Black "Fedoseev, Vladimir"]
[Result "0-1"]
[ECO "B30"]
[WhiteElo "2757"]
[BlackElo "2739"]
[Annotator "ChessBase"]
[PlyCount "74"]
[EventDate "2025.??.??"]
[EventType "blitz"]
[TimeControl "300+2"]

1. e4 {[%emt 0:00:00]} c5 {[%emt 0:00:03]} 2. Nf3 {[%emt 0:00:01]} Nc6 {[%emt 0:00:01]} 3. Bb5 {[%emt 0:00:01]} Nf6 {[%emt 0:00:03]} 4. Bxc6 {[%emt 0:00:03]} dxc6 {[%emt 0:00:06]} 5. d3 {[%emt 0:00:01]} Qc7 {[%emt 0:00:06]} 6. b3 {[%emt 0:00:01]} g6 {[%emt 0:00:12]} ({RR} 6... e5 7. Bb2 Bd6 8. Nbd2 Be6 9. a4 Nd7 10. O-O Nf8 11. Nc4 Bxc4 12. bxc4 Ne6 13. Nh4 g6 14. f4 Rg8 15. f5 gxf5 16. Nxf5 O-O-O 17. a5 Nd4 18. Bxd4 exd4 19. Qh5 Be5 20. Nh6 Rg7 21. Nxf7 {Smirnov,M (2336)-Urazayev,A (2448) chess.com INT 2025 1-0}) 7. Bb2 {[%emt 0:00:03]} Bg7 {[%emt 0:00:01]} 8. Nbd2 {[%emt 0:00:04]} O-O {[%emt 0:00:03]} 9. Qe2 $146 {[%emt 0:00:17]} ({RR} 9. O-O b5 10. a4 a5 11. Ra2 Rd8 12. Qa1 Ne8 13. e5 e6 14. Bc3 b4 15. Bb2 Ba6 16. Qe1 Bf8 17. Ne4 Rd5 18. Qe3 Rad8 19. h4 Bxd3 20. cxd3 Rxd3 21. Qc1 Qe7 22. Qc4 R3d5 23. Bc1 h6 {Vrnata,J (2042)-Palla,R (1719) Nachod 2013 1-0 (37)}) ({RR} 9. O-O Bg4 10. h3 Bxf3 11. Nxf3 Rad8 12. Qe2 Nh5 13. e5 Nf4 14. Qe4 Ne6 15. Rae1 Rd5 16. a4 Rfd8 17. Qg4 b6 18. Re4 Nd4 19. Bxd4 cxd4 20. Rfe1 c5 21. Qg3 e6 22. h4 h5 23. Ng5 a6 {Caruana,F (2796)-Vakhlamov,I (2413) chess.com INT 2024 1-0 (39)}) ({RR} 9. O-O Bg4 10. h3 Bxf3 11. Nxf3 Rad8 12. Qe2 Nh5 13. e5 Nf4 14. Qe4 Ne6 15. Rae1 Rd5 16. a4 Rfd8 17. Qg4 b6 18. Re4 Nd4 19. Bxd4 cxd4 20. Rfe1 c5 21. Qg3 e6 22. h4 h5 23. Ng5 a6 {Caruana,F (2796)-Vakhlamov,I (2413) chess.com INT 2024 1-0 (39)}) 9... a5 {[%emt 0:00:07]} 10. a4 {[%emt 0:00:02]} Nh5 {[%emt 0:00:08]} 11. Bxg7 {[%emt 0:00:03]} Kxg7 {[%emt 0:00:02]} 12. Qe3 {[%emt 0:00:03]} Nf4 {[%emt 0:00:06]} 13. O-O {[%emt 0:00:05]} b6 {[%emt 0:00:06]} 14. Nc4 {[%emt 0:00:03]} Rb8 {[%emt 0:00:16]} 15. Nfe5 {[%emt 0:00:34]} Ne6 {[%emt 0:00:41]} 16. f4 {[%emt 0:00:03]} b5 {[%emt 0:00:37]} 17. Nxa5 {[%emt 0:01:36]} Qxa5 {[%emt 0:00:29]} 18. Nxc6 {[%emt 0:00:01]} Qc7 {[%emt 0:00:41]} 19. Nxb8 {[%emt 0:00:01]} b4 {[%emt 0:00:12]} 20. Rac1 {[%emt 0:01:01]} Qxb8 {[%emt 0:00:05]} 21. c3 {[%emt 0:00:00]} bxc3 {[%emt 0:00:17]} 22. Rxc3 {[%emt 0:00:01]} Qb4 {[%emt 0:00:10]} 23. Rfc1 {[%emt 0:00:22]} Ba6 {[%emt 0:00:03]} 24. h4 {[%emt 0:00:06]} Qd4 {[%emt 0:00:04]} 25. Qxd4+ {[%emt 0:00:35]} cxd4 {[%emt 0:00:01]} 26. Rc6 {[%emt 0:00:08]} Nxf4 {[%emt 0:00:13]} 27. Rd1 {[%emt 0:00:06]} Bxd3 {[%emt 0:00:01]} 28. b4 {[%emt 0:00:06]} Bxe4 {[%emt 0:00:08]} 29. Rc7 {[%emt 0:00:12]} Nd5 {[%emt 0:00:05]} 30. Rc5 {[%emt 0:00:05]} e5 {[%emt 0:00:11]} 31. a5 {[%emt 0:00:04]} Nxb4 {[%emt 0:00:05]} 32. Rxe5 {[%emt 0:00:01]} Bc2 {[%emt 0:00:01]} 33. Rd2 {[%emt 0:00:05]} d3 {[%emt 0:00:09]} 34. Rc5 {[%emt 0:00:07]} Re8 {[%emt 0:00:05]} 35. Kf2 {[%emt 0:00:05]} Re6 {[%emt 0:00:02]} 36. Rc4 {[%emt 0:00:03]} Nd5 {[%emt 0:00:05]} 37. Rd4 {[%emt 0:00:03]} Nc3 {[%emt 0:00:02]} 0-1